[Event "2nd Sharjah Masters 2018"]
[Site "Sharjah"]
[Date "2018.04.19"]
[Round "9"]
[White "Mullick, Raahil"]
[Black "Mohannad, Farhan"]
[Result "1-0"]
[ECO "C00"]
[WhiteElo "2053"]
[BlackElo "2219"]
[Annotator "NA"]
[PlyCount "109"]
[EventDate "2018.??.??"]
[EventType "swiss"]
[EventCountry "UAE"]
[SourceTitle "playchess.com"]
[Source "ChessBase"]
[SourceQuality "1"]
[TimeControl "5400+30"]

1. e4 {[%emt 0:02:34]} e6 {[%emt 0:00:08]} 2. d3 {[%emt 0:04:21]} d5 {[%emt 0:00:09]} 3. Nd2 {[%emt 0:00:34]} Nf6 {[%emt 0:00:05]} 4. Ngf3 {[%emt 0:00:06]} b6 {[%emt 0:00:54]} 5. c3 {[%emt 0:00:06]} Be7 {[%emt 0:00:50]} 6. Be2 {[%emt 0:03:12]} O-O {[%emt 0:00:14]} 7. O-O {[%emt 0:00:14]} c5 {[%emt 0:01:29]} 8. Re1 {[%emt 0:01:51]} Nc6 {[%emt 0:00:45]} 9. b3 {[%emt 0:02:45]} e5 {[%emt 0:04:39]} 10. Bb2 {[%emt 0:01:54]} d4 {[%emt 0:00:39]} 11. cxd4 {[%emt 0:03:11]} cxd4 {[%emt 0:00:42]} 12. Rc1 {[%emt 0:08:47]} Bb7 {[%emt 0:00:04]} 13. g3 {[%emt 0:07:06]} Nd7 {[%emt 0:00:54]} 14. Bf1 {[%emt 0:01:24]} a5 {[%emt 0:07:03]} 15. a3 {[%emt 0:05:49]} Nc5 {[%emt 0:03:47]} 16. Qc2 {[%emt 0:02:47]} Kh8 $17 {[%emt 0:03:55]} 17. Qb1 {[%emt 0:01:48]} f6 {[%emt 0:03:10]} 18. Be2 {[%emt 0:13:50]} f5 {[%emt 0:13:05]} 19. b4 {[%emt 0:19:32]} axb4 {[%emt 0:00:48]} 20. axb4 {[%emt 0:00:13]} Nxb4 {[%emt 0:01:13]} 21. Nxe5 {[%emt 0:00:26]} Na2 {[%emt 0:12:16]} 22. Rcd1 {[%emt 0:02:38]} b5 {[%emt 0:13:42]} 23. exf5 {[%emt 0:03:45]} Rxf5 {[%emt 0:00:52]} 24. Bg4 {[%emt 0:00:30]} Rf8 {[%emt 0:03:36]} 25. Bf3 {[%emt 0:04:53]} Bxf3 {[%emt 0:01:32]} 26. Ndxf3 {[%emt 0:01:51]} Qd5 {[%emt 0:01:12]} 27. Nxd4 {[%emt 0:04:49]} Na4 {[%emt 0:00:47]} 28. Nxb5 {[%emt 0:02:20]} Rab8 {[%emt 0:02:29]} 29. Nc4 {[%emt 0:00:34]} Rxb5 {[%emt 0:09:22]} 30. Bxg7+ {[%emt 0:00:28]} Kxg7 {[%emt 0:00:18]} 31. Rxe7+ {[%emt 0:00:39]} Kf6 {[%emt 0:01:58]} 32. Qxa2 {[%emt 0:00:01]} Kxe7 {[%emt 0:00:27]} 33. Qxa4 {[%emt 0:00:01]} Ra8 {[%emt 0:02:46]} 34. Re1+ {[%emt 0:00:20]} Kf8 {[%emt 0:00:14]} 35. Qc2 {[%emt 0:00:38]} Re8 {[%emt 0:00:23]} 36. Ra1 {[%emt 0:01:29]} Reb8 {[%emt 0:01:15]} 37. Qc1 {[%emt 0:00:30]} Kg8 {[%emt 0:00:32]} 38. Qd1 {[%emt 0:00:30]} Qd4 {[%emt 0:00:49]} 39. Kg2 {[%emt 0:00:27]} Rf8 {[%emt 0:00:13]} 40. Ra2 {[%emt 0:00:30]} Qd5+ {[%emt 0:02:29]} 41. Kg1 {[%emt 0:00:12]} Rfb8 {[%emt 0:00:21]} 42. Qg4+ {[%emt 0:00:30]} Kh8 {[%emt 0:00:05]} 43. Qe4 {[%emt 0:00:04]} Qd7 {[%emt 0:01:47]} 44. Ne5 {[%emt 0:00:55]} Qg7 {[%emt 0:00:07]} 45. Nc6 {[%emt 0:00:27]} Rg8 {[%emt 0:03:00]} 46. Ra7 {[%emt 0:00:37]} Rb7 {[%emt 0:00:04]} 47. Rxb7 {[%emt 0:00:46]} Qxb7 {[%emt 0:00:04]} 48. d4 {[%emt 0:00:27]} Ra8 {[%emt 0:02:22]} 49. d5 {[%emt 0:00:30]} Qc7 {[%emt 0:00:38]} 50. Ne7 {[%emt 0:00:34]} Ra1+ {[%emt 0:01:31]} 51. Kg2 {[%emt 0:00:00]} Rd1 {[%emt 0:00:06]} 52. Qe6 {[%emt 0:00:34]} Kg7 {[%emt 0:01:05]} 53. Nf5+ {[%emt 0:00:39]} Kf8 {[%emt 0:00:04]} 54. Qh6+ {[%emt 0:00:36]} Ke8 {[%emt 0:00:08]} 55. Qh5+ {[%emt 0:00:10]} 1-0

[Event "2nd Sharjah Masters 2018"]
[Site "Sharjah"]
[Date "2018.04.19"]
[Round "9"]
[White "Sun, Chao"]
[Black "Sultan, Ibrahim"]
[Result "0-1"]
[ECO "C07"]
[WhiteElo "2041"]
[BlackElo "2141"]
[Annotator "NA"]
[PlyCount "141"]
[EventDate "2018.??.??"]
[EventType "swiss"]
[EventCountry "UAE"]
[SourceTitle "playchess.com"]
[Source "ChessBase"]
[SourceQuality "1"]
[TimeControl "5400+30"]

1. e4 {[%emt 0:00:01]} e6 {[%emt 0:12:46]} 2. d4 {[%emt 0:05:41]} d5 {[%emt 0:00:57]} 3. Nd2 {[%emt 0:00:03]} c5 {[%emt 0:00:19]} 4. exd5 {[%emt 0:00:06]} Qxd5 {[%emt 0:00:18]} 5. Ngf3 {[%emt 0:00:03]} cxd4 {[%emt 0:00:10]} 6. Bc4 {[%emt 0:00:03]} Qd7 {[%emt 0:00:07]} 7. O-O {[%emt 0:00:07]} Nf6 {[%emt 0:00:04]} 8. Nb3 {[%emt 0:00:07]} Nc6 {[%emt 0:00:05]} 9. Nbxd4 {[%emt 0:00:09]} Nxd4 {[%emt 0:00:07]} 10. Qxd4 {[%emt 0:00:22]} Qxd4 {[%emt 0:01:09]} 11. Nxd4 {[%emt 0:00:06]} Bd7 {[%emt 0:00:07]} 12. Re1 {[%emt 0:03:18]} Bc5 {[%emt 0:07:00] C07: French Tarrasch: 3...c5, 4 Ngf3 and 4 exd5 Qxd5} 13. Be3 {[%emt 0:01:33]} Rc8 {[%emt 0:04:20]} (13... Ng4 14. Nxe6 Bxe3 15. Nd4 Rc8 16. Bb3 O-O 17. fxe3 Rfe8 18. e4 Kf8 19. Rad1 a5 20. a3 {1-0 (64) Plat,V (2569)-Meier,G (2647) chess.com INT 2018}) 14. Bb3 {[%emt 0:01:49]} O-O {[%emt 0:01:31]} 15. h3 {[%emt 0:00:27]} Rfd8 {[%emt 0:23:11]} 16. Rad1 {[%emt 0:00:09]} Bb6 $146 {[%emt 0:07:15]} ({Predecessor:} 16... Kf8 17. c3 a5 18. a4 Nd5 19. Bg5 Ne7 {½-½ (69) Pesotsky,V (2338)-Airapetian,G (2351) Lipetsk 2008}) 17. c3 {[%emt 0:00:32]} Be8 {[%emt 0:05:13]} 18. Nc2 {[%emt 0:04:41]} Bxe3 {[%emt 0:00:19]} 19. Nxe3 {[%emt 0:00:04]} Bc6 {[%emt 0:01:46]} 20. Rxd8+ {[%emt 0:01:28]} Rxd8 {[%emt 0:00:09]} 21. Rd1 {[%emt 0:00:02]} Rxd1+ {[%emt 0:00:31]} 22. Bxd1 {[%emt 0:00:03]} Kf8 {[%emt 0:00:44]} 23. f3 {[%emt 0:00:17]} g5 {[%emt 0:02:32]} 24. Kf2 {[%emt 0:00:11]} Nd7 {[%emt 0:03:57]} 25. g3 {[%emt 0:00:23]} Ne5 {[%emt 0:04:49]} 26. Be2 {[%emt 0:00:05]} Ke7 {[%emt 0:04:35]} 27. Nc4 {[%emt 0:00:39]} Nxc4 {[%emt 0:01:01]} 28. Bxc4 {[%emt 0:00:04]} Bd5 {[%emt 0:00:50]} 29. Bxd5 {[%emt 0:00:07]} exd5 {[%emt 0:00:02]} 30. Ke3 {[%emt 0:00:10]} Ke6 {[%emt 0:00:17]} 31. Kd4 {[%emt 0:00:31]} h5 {[%emt 0:01:36]} 32. g4 {[%emt 0:00:54]} h4 {[%emt 0:01:31]} 33. a4 {[%emt 0:00:21]} b6 {[%emt 0:04:40]} 34. b3 $11 {[%emt 0:00:16]} Kd6 {[%emt 0:02:58]} 35. c4 {[%emt 0:02:57]} dxc4 {[%emt 0:00:03]} 36. Kxc4 {[%emt 0:00:02]} Ke5 {[%emt 0:03:19]} 37. Kb5 {[%emt 0:00:03]} Kf4 {[%emt 0:00:08]} 38. Ka6 {[%emt 0:00:02]} Kg3 {[%emt 0:00:05]} 39. Kxa7 {[%emt 0:00:02]} Kxh3 {[%emt 0:00:08]} 40. Kxb6 {[%emt 0:00:11]} Kg3 {[%emt 0:00:03]} 41. a5 {[%emt 0:00:05]} h3 {[%emt 0:00:04]} 42. a6 {[%emt 0:00:02]} h2 {[%emt 0:00:06]} 43. a7 {[%emt 0:00:02]} h1=Q {[%emt 0:00:07]} 44. a8=Q {[%emt 0:00:02]} Qxf3 {[%emt 0:03:15]} 45. Qxf3+ {[%emt 0:00:05]} Kxf3 {[%emt 0:00:04]} 46. Kc6 {[%emt 0:00:04]} Kxg4 {[%emt 0:00:06]} 47. b4 {[%emt 0:00:01]} Kf5 {[%emt 0:00:41]} 48. b5 {[%emt 0:00:03]} g4 {[%emt 0:00:07]} 49. b6 {[%emt 0:00:05]} g3 {[%emt 0:00:03]} 50. b7 {[%emt 0:00:02]} g2 {[%emt 0:00:05]} 51. b8=Q {[%emt 0:00:03]} g1=Q {[%emt 0:00:08]} 52. Qc8+ {[%emt 0:00:11]} Kf6 {[%emt 0:00:29]} 53. Qh8+ {[%emt 0:00:06]} Qg7 {[%emt 0:00:51]} 54. Qh4+ {[%emt 0:00:44]} Qg5 {[%emt 0:02:04]} 55. Qd4+ {[%emt 0:01:04]} Kg6 {[%emt 0:00:31]} 56. Qe4+ {[%emt 0:00:38]} Kh6 {[%emt 0:00:55]} 57. Kd7 {[%emt 0:00:39]} f5 {[%emt 0:01:24]} 58. Qh1+ {[%emt 0:00:53]} Kg6 {[%emt 0:00:57]} 59. Qb1 {[%emt 0:01:28]} Qe3 {[%emt 0:00:18]} 60. Qb2 {[%emt 0:01:49]} f4 {[%emt 0:01:51]} 61. Qg2+ {[%emt 0:00:04]} Kf6 {[%emt 0:00:25]} 62. Qc6+ {[%emt 0:00:35]} Kg5 {[%emt 0:00:17]} 63. Qd5+ {[%emt 0:00:06]} Kh4 {[%emt 0:00:13]} 64. Qc4 {[%emt 0:00:36]} Kh3 {[%emt 0:00:24]} 65. Qg8 {[%emt 0:02:58]} f3 {[%emt 0:00:35]} 66. Qh7+ {[%emt 0:00:04]} Kg2 {[%emt 0:00:18]} 67. Qg6+ {[%emt 0:00:04]} Kf1 {[%emt 0:00:12]} 68. Qc2 {[%emt 0:00:48]} f2 {[%emt 0:01:13]} 69. Qd1+ {[%emt 0:00:26]} Kg2 {[%emt 0:00:08]} 70. Qg4+ {[%emt 0:00:43]} Kh2 {[%emt 0:00:10]} 71. Qd1 0-1